[Event "Titled Tuesday Blitz June 20 Late 2023"]
[White "ATM622"]
[Black "Elsa167"]
[WhiteElo "2651"]
[BlackElo "2824"]
[Result "0-1"]
[Round "8"]
[TimeControl "180+2"]
[Date "2023.06.20"]
[WhiteClock "0:01:15"]
[BlackClock "0:00:44"]
[Board "26"]

1. d4 {[%clk 0:03:00]}  e6 {[%clk 0:02:59]} 2. c4 {[%clk 0:03:01]}  d5 {[%clk 0:02:59]} 3. Nf3 {[%clk 0:03:01]}  Nf6 {[%clk 0:02:59]} 4. Nbd2 {[%clk 0:03:01]}  c5 {[%clk 0:02:56]} 5. g3 {[%clk 0:03:01]}  cxd4 {[%clk 0:02:54]} 6. Nxd4 {[%clk 0:03:01]}  e5 {[%clk 0:02:51]} 7. N4f3 {[%clk 0:02:59]}  e4 {[%clk 0:02:48]} 8. Nd4 {[%clk 0:03:00]}  dxc4 {[%clk 0:02:39]} 9. Nxc4 {[%clk 0:02:41]}  Bb4+ {[%clk 0:02:38]} 10. Bd2 {[%clk 0:02:39]}  Qxd4 {[%clk 0:02:20]} 11. Bxb4 {[%clk 0:02:35]}  Qxc4 {[%clk 0:02:20]} 12. Qd6 {[%clk 0:02:34]}  Nc6 {[%clk 0:02:12]} 13. Ba3 {[%clk 0:02:33]}  Qd5 {[%clk 0:01:51]} 14. Qc7 {[%clk 0:02:27]}  Qa5+ {[%clk 0:01:49]} 15. Qxa5 {[%clk 0:02:26]}  Nxa5 {[%clk 0:01:50]} 16. Rc1 {[%clk 0:02:25]}  Be6 {[%clk 0:01:47]} 17. Rc7 {[%clk 0:02:24]}  Nd5 {[%clk 0:01:45]} 18. Rc5 {[%clk 0:02:22]}  b6 {[%clk 0:01:44]} 19. Rc1 {[%clk 0:02:21]}  Rc8 {[%clk 0:01:39]} 20. Rxc8+ {[%clk 0:02:18]}  Bxc8 {[%clk 0:01:40]} 21. Bg2 {[%clk 0:02:19]}  f5 {[%clk 0:01:39]} 22. O-O {[%clk 0:02:19]}  Be6 {[%clk 0:01:35]} 23. Rc1 {[%clk 0:02:15]}  Kd7 {[%clk 0:01:35]} 24. f3 {[%clk 0:02:15]}  exf3 {[%clk 0:01:17]} 25. Bxf3 {[%clk 0:02:15]}  Rd8 {[%clk 0:00:58]} 26. b3 {[%clk 0:01:30]}  Nc6 {[%clk 0:00:57]} 27. e4 {[%clk 0:01:30]}  Nd4 {[%clk 0:00:53]} 28. Kf2 {[%clk 0:01:27]}  Nxf3 {[%clk 0:00:52]} 29. Kxf3 {[%clk 0:01:28]}  fxe4+ {[%clk 0:00:51]} 30. Kxe4 {[%clk 0:01:29]}  Nf6+ {[%clk 0:00:51]} 31. Ke5 {[%clk 0:01:25]}  Ng4+ {[%clk 0:00:50]} 32. Kf4 {[%clk 0:01:25]}  Ke8 {[%clk 0:00:43]} 33. Rc7 {[%clk 0:01:24]}  Rd7 {[%clk 0:00:43]} 34. Rc8+ {[%clk 0:01:22]}  Kf7 {[%clk 0:00:43]} 35. h3 {[%clk 0:01:18]}  Rd4+ {[%clk 0:00:43]} 36. Kf3 {[%clk 0:01:15]}  Bxc8 {[%clk 0:00:44]} 0-1


[Site "https://www.chess.com"]

[Event "Titled Tuesday Blitz June 20 Late 2023"]
[White "Ismagilov, Damir"]
[Black "Fodor, Tamas Jr."]
[WhiteFideId "34199982"]
[BlackFideId "723762"]
[WhiteElo "2104"]
[BlackElo "2504"]
[Result "0-1"]
[Round "8"]
[TimeControl "180+2"]
[Date "2023.06.20"]
[WhiteClock "0:00:00"]
[BlackClock "0:00:42"]
[Board "28"]

1. d4 {[%clk 0:03:00]}  d5 {[%clk 0:02:59]} 2. Bf4 {[%clk 0:02:59]}  c5 {[%clk 0:02:56]} 3. e3 {[%clk 0:03:00]}  Nc6 {[%clk 0:02:56]} 4. c3 {[%clk 0:03:00]}  Qb6 {[%clk 0:02:51]} 5. Qb3 {[%clk 0:03:00]}  c4 {[%clk 0:02:51]} 6. Qc2 {[%clk 0:03:00]}  g6 {[%clk 0:02:50]} 7. e4 {[%clk 0:02:52]}  dxe4 {[%clk 0:02:45]} 8. Nd2 {[%clk 0:02:51]}  Bf5 {[%clk 0:02:43]} 9. Nxc4 {[%clk 0:02:48]}  Qd8 {[%clk 0:02:42]} 10. Ne3 {[%clk 0:02:41]}  Bg7 {[%clk 0:02:39]} 11. Bb5 {[%clk 0:02:32]}  Nf6 {[%clk 0:02:35]} 12. Ne2 {[%clk 0:02:26]}  O-O {[%clk 0:02:32]} 13. Nxf5 {[%clk 0:02:23]}  gxf5 {[%clk 0:02:33]} 14. Ng3 {[%clk 0:02:21]}  e6 {[%clk 0:02:33]} 15. Bxc6 {[%clk 0:02:15]}  bxc6 {[%clk 0:02:34]} 16. Be5 {[%clk 0:02:13]}  Nd5 {[%clk 0:02:31]} 17. Bxg7 {[%clk 0:02:07]}  Kxg7 {[%clk 0:02:32]} 18. O-O {[%clk 0:02:04]}  Qh4 {[%clk 0:02:27]} 19. Qd1 {[%clk 0:01:52]}  Nf6 {[%clk 0:02:23]} 20. f3 {[%clk 0:01:33]}  e3 {[%clk 0:02:21]} 21. Qd3 {[%clk 0:01:14]}  f4 {[%clk 0:02:16]} 22. Ne4 {[%clk 0:01:11]}  Rab8 {[%clk 0:02:14]} 23. g3 {[%clk 0:01:07]}  Qh3 {[%clk 0:02:05]} 24. Nxf6 {[%clk 0:00:45]}  Rxb2 {[%clk 0:02:00]} 25. Qxh7+ {[%clk 0:00:44]}  Qxh7 {[%clk 0:01:59]} 26. Nxh7 {[%clk 0:00:44]}  Rh8 {[%clk 0:01:52]} 27. Rfb1 {[%clk 0:00:35]}  Rd2 {[%clk 0:01:44]} 28. Rd1 {[%clk 0:00:36]}  Rxd1+ {[%clk 0:01:30]} 29. Rxd1 {[%clk 0:00:36]}  Kxh7 {[%clk 0:01:31]} 30. gxf4 {[%clk 0:00:35]}  Rb8 {[%clk 0:01:20]} 31. Re1 {[%clk 0:00:33]}  Rb2 {[%clk 0:01:19]} 32. Rxe3 {[%clk 0:00:33]}  Rxa2 {[%clk 0:01:20]} 33. f5 {[%clk 0:00:34]}  exf5 {[%clk 0:01:19]} 34. Re7 {[%clk 0:00:34]}  Kg6 {[%clk 0:01:19]} 35. Rc7 {[%clk 0:00:35]}  a5 {[%clk 0:01:13]} 36. Rxc6+ {[%clk 0:00:34]}  Kg5 {[%clk 0:01:13]} 37. d5 {[%clk 0:00:31]}  Kf4 {[%clk 0:01:13]} 38. d6 {[%clk 0:00:29]}  Kxf3 {[%clk 0:01:13]} 39. h4 {[%clk 0:00:29]}  Kg3 {[%clk 0:01:10]} 40. Kf1 {[%clk 0:00:28]}  f4 {[%clk 0:01:08]} 41. Rc8 {[%clk 0:00:21]}  Rd2 {[%clk 0:01:03]} 42. Rd8 {[%clk 0:00:14]}  f3 {[%clk 0:00:56]} 43. Ke1 {[%clk 0:00:14]}  Rd5 {[%clk 0:00:52]} 44. Rg8+ {[%clk 0:00:11]}  Kf4 {[%clk 0:00:52]} 45. Rd8 {[%clk 0:00:12]}  a4 {[%clk 0:00:50]} 46. c4 {[%clk 0:00:11]}  Re5+ {[%clk 0:00:50]} 47. Kf1 {[%clk 0:00:10]}  a3 {[%clk 0:00:49]} 48. d7 {[%clk 0:00:10]}  Re7 {[%clk 0:00:49]} 49. c5 {[%clk 0:00:08]}  a2 {[%clk 0:00:48]} 50. Ra8 {[%clk 0:00:08]}  Rxd7 {[%clk 0:00:49]} 51. Rxa2 {[%clk 0:00:09]}  Kg3 {[%clk 0:00:48]} 52. Ra1 {[%clk 0:00:08]}  Rd2 {[%clk 0:00:47]} 53. c6 {[%clk 0:00:07]}  Rc2 {[%clk 0:00:47]} 54. h5 {[%clk 0:00:06]}  Rh2 {[%clk 0:00:41]} 55. Ke1 {[%clk 0:00:03]}  Rh1+ {[%clk 0:00:41]} 56. Kd2 {[%clk 0:00:03]}  Rxa1 {[%clk 0:00:42]} 57. c7 {[%clk 0:00:04]}  Ra8 {[%clk 0:00:42]} 58. h6 {[%clk 0:00:04]}  f2 {[%clk 0:00:42]} 59. h7 {[%clk 0:00:04]}  f1=Q {[%clk 0:00:42]} 60. c8=Q {[%clk 0:00:05]}  Rxc8 {[%clk 0:00:41]} 61. h8=Q {[%clk 0:00:00]}  Rxh8 {[%clk 0:00:42]} 0-1


[Site "https://www.chess.com"]

[Event "Titled Tuesday Blitz June 20 Late 2023"]
[White "Leitao, Rafael"]
[Black "Fishbein, Alexander"]
[WhiteFideId "2101246"]
[BlackFideId "2000377"]
[WhiteElo "2609"]
[BlackElo "2403"]
[Result "1-0"]
[Round "8"]
[TimeControl "180+2"]
[Date "2023.06.20"]
[WhiteClock "0:00:21"]
[BlackClock "0:00:08"]
[Board "35"]

1. c4 {[%clk 0:03:00]}  Nf6 {[%clk 0:02:58]} 2. Nc3 {[%clk 0:02:58]}  g6 {[%clk 0:02:57]} 3. g3 {[%clk 0:02:57]}  Bg7 {[%clk 0:02:57]} 4. Bg2 {[%clk 0:02:57]}  d6 {[%clk 0:02:57]} 5. d4 {[%clk 0:02:56]}  O-O {[%clk 0:02:57]} 6. h3 {[%clk 0:02:57]}  Nc6 {[%clk 0:02:56]} 7. Nf3 {[%clk 0:02:55]}  e5 {[%clk 0:02:55]} 8. Be3 {[%clk 0:02:55]}  Re8 {[%clk 0:02:48]} 9. dxe5 {[%clk 0:02:50]}  dxe5 {[%clk 0:02:46]} 10. Qxd8 {[%clk 0:02:29]}  Rxd8 {[%clk 0:02:45]} 11. Rc1 {[%clk 0:02:29]}  Be6 {[%clk 0:02:40]} 12. b3 {[%clk 0:02:27]}  a5 {[%clk 0:02:37]} 13. Ng5 {[%clk 0:02:23]}  Bf5 {[%clk 0:02:25]} 14. g4 {[%clk 0:02:16]}  Bd7 {[%clk 0:02:24]} 15. Nd5 {[%clk 0:02:15]}  h6 {[%clk 0:01:57]} 16. Nxf6+ {[%clk 0:02:05]}  Bxf6 {[%clk 0:01:56]} 17. Ne4 {[%clk 0:02:06]}  Bg7 {[%clk 0:01:55]} 18. Nc5 {[%clk 0:02:04]}  Nd4 {[%clk 0:01:42]} 19. Bxd4 {[%clk 0:02:00]}  exd4 {[%clk 0:01:40]} 20. Nxb7 {[%clk 0:01:58]}  Re8 {[%clk 0:01:18]} 21. Nc5 {[%clk 0:01:55]}  d3 {[%clk 0:01:12]} 22. Bxa8 {[%clk 0:01:41]}  Rxe2+ {[%clk 0:01:11]} 23. Kf1 {[%clk 0:01:39]}  Bd4 {[%clk 0:00:57]} 24. Nxd3 {[%clk 0:01:27]}  Rd2 {[%clk 0:00:57]} 25. Be4 {[%clk 0:01:10]}  f5 {[%clk 0:00:56]} 26. gxf5 {[%clk 0:01:10]}  gxf5 {[%clk 0:00:56]} 27. Bd5+ {[%clk 0:01:02]}  Kf8 {[%clk 0:00:55]} 28. Kg2 {[%clk 0:00:58]}  Rxd3 {[%clk 0:00:55]} 29. Rhd1 {[%clk 0:00:58]}  Rxd1 {[%clk 0:00:54]} 30. Rxd1 {[%clk 0:00:58]}  c5 {[%clk 0:00:54]} 31. Re1 {[%clk 0:00:58]}  a4 {[%clk 0:00:53]} 32. bxa4 {[%clk 0:00:57]}  Bxa4 {[%clk 0:00:52]} 33. Rb1 {[%clk 0:00:57]}  Ke7 {[%clk 0:00:49]} 34. Rb6 {[%clk 0:00:56]}  h5 {[%clk 0:00:49]} 35. Rh6 {[%clk 0:00:54]}  Bd1 {[%clk 0:00:48]} 36. Bf3 {[%clk 0:00:52]}  Bc2 {[%clk 0:00:46]} 37. Rxh5 {[%clk 0:00:50]}  Kf6 {[%clk 0:00:46]} 38. Rh7 {[%clk 0:00:49]}  Bd3 {[%clk 0:00:43]} 39. Bd5 {[%clk 0:00:47]}  Ke5 {[%clk 0:00:43]} 40. Rb7 {[%clk 0:00:36]}  Bc2 {[%clk 0:00:32]} 41. h4 {[%clk 0:00:36]}  Kf4 {[%clk 0:00:32]} 42. Ra7 {[%clk 0:00:24]}  Kg4 {[%clk 0:00:31]} 43. a4 {[%clk 0:00:24]}  Kxh4 {[%clk 0:00:28]} 44. a5 {[%clk 0:00:25]}  f4 {[%clk 0:00:21]} 45. a6 {[%clk 0:00:25]}  Bf5 {[%clk 0:00:17]} 46. Rf7 {[%clk 0:00:20]}  Bh3+ {[%clk 0:00:08]} 47. Kf3 {[%clk 0:00:21]} 1-0


[Site "https://www.chess.com"]

[Event "Titled Tuesday Blitz June 20 Late 2023"]
[White "Maximov, Dmitry"]
[Black "Subelj, Jan"]
[WhiteFideId "14105659"]
[BlackFideId "14618583"]
[WhiteElo "2494"]
[BlackElo "2499"]
[Result "1-0"]
[Round "8"]
[TimeControl "180+2"]
[Date "2023.06.20"]
[WhiteClock "0:00:22"]
[BlackClock "0:00:30"]
[Board "36"]

1. e4 {[%clk 0:03:00]}  Nc6 {[%clk 0:02:54]} 2. Nf3 {[%clk 0:03:00]}  e6 {[%clk 0:02:52]} 3. d4 {[%clk 0:03:00]}  d5 {[%clk 0:02:52]} 4. e5 {[%clk 0:03:00]}  f6 {[%clk 0:02:50]} 5. Be2 {[%clk 0:02:55]}  fxe5 {[%clk 0:02:47]} 6. dxe5 {[%clk 0:02:55]}  Nge7 {[%clk 0:02:47]} 7. c4 {[%clk 0:02:47]}  Nf5 {[%clk 0:02:41]} 8. O-O {[%clk 0:02:46]}  Be7 {[%clk 0:02:40]} 9. Nc3 {[%clk 0:02:40]}  d4 {[%clk 0:02:40]} 10. Ne4 {[%clk 0:02:38]}  O-O {[%clk 0:02:41]} 11. a3 {[%clk 0:02:36]}  b6 {[%clk 0:02:36]} 12. Bd3 {[%clk 0:02:36]}  Bb7 {[%clk 0:02:36]} 13. Re1 {[%clk 0:02:36]}  a5 {[%clk 0:02:27]} 14. Qe2 {[%clk 0:02:32]}  Nh4 {[%clk 0:02:22]} 15. Nxh4 {[%clk 0:02:31]}  Bxh4 {[%clk 0:02:23]} 16. Ng3 {[%clk 0:02:20]}  Ne7 {[%clk 0:02:22]} 17. Bxh7+ {[%clk 0:02:04]}  Kxh7 {[%clk 0:02:23]} 18. Qh5+ {[%clk 0:02:04]}  Kg8 {[%clk 0:02:22]} 19. Qxh4 {[%clk 0:02:05]}  Nf5 {[%clk 0:02:23]} 20. Qh3 {[%clk 0:01:57]}  Qh4 {[%clk 0:02:19]} 21. Qxh4 {[%clk 0:01:46]}  Nxh4 {[%clk 0:02:20]} 22. f3 {[%clk 0:01:46]}  Bxf3 {[%clk 0:02:10]} 23. gxf3 {[%clk 0:01:37]}  Nxf3+ {[%clk 0:02:11]} 24. Kf2 {[%clk 0:01:37]}  Nxe5+ {[%clk 0:01:57]} 25. Kg2 {[%clk 0:01:33]}  Nxc4 {[%clk 0:01:57]} 26. b3 {[%clk 0:01:28]}  Nd6 {[%clk 0:01:53]} 27. Rxe6 {[%clk 0:01:26]}  Rae8 {[%clk 0:01:51]} 28. Rxe8 {[%clk 0:01:25]}  Rxe8 {[%clk 0:01:52]} 29. Bf4 {[%clk 0:01:24]}  Nb5 {[%clk 0:01:38]} 30. a4 {[%clk 0:01:10]}  Nc3 {[%clk 0:01:35]} 31. Bd2 {[%clk 0:01:09]}  Nd5 {[%clk 0:01:29]} 32. Rf1 {[%clk 0:00:59]}  c5 {[%clk 0:01:28]} 33. Rf5 {[%clk 0:00:57]}  Nf6 {[%clk 0:01:23]} 34. Kf3 {[%clk 0:00:53]}  Kf7 {[%clk 0:01:18]} 35. Bg5 {[%clk 0:00:51]}  Kg6 {[%clk 0:01:16]} 36. h4 {[%clk 0:00:48]}  Re1 {[%clk 0:01:12]} 37. Bxf6 {[%clk 0:00:45]}  gxf6 {[%clk 0:01:12]} 38. h5+ {[%clk 0:00:45]}  Kg7 {[%clk 0:01:12]} 39. Rd5 {[%clk 0:00:42]}  Re3+ {[%clk 0:01:08]} 40. Kf4 {[%clk 0:00:42]}  Rxb3 {[%clk 0:01:07]} 41. Nf5+ {[%clk 0:00:42]}  Kf7 {[%clk 0:01:08]} 42. h6 {[%clk 0:00:34]}  Rh3 {[%clk 0:01:01]} 43. Rd7+ {[%clk 0:00:33]}  Ke6 {[%clk 0:00:57]} 44. Rd6+ {[%clk 0:00:33]}  Kf7 {[%clk 0:00:57]} 45. Rxb6 {[%clk 0:00:33]}  d3 {[%clk 0:00:56]} 46. Rd6 {[%clk 0:00:25]}  c4 {[%clk 0:00:56]} 47. Ke4 {[%clk 0:00:25]}  Kg6 {[%clk 0:00:51]} 48. Rd7 {[%clk 0:00:24]}  Kh5 {[%clk 0:00:31]} 49. h7 {[%clk 0:00:22]}  Kg4 {[%clk 0:00:30]} 50. Rg7+ {[%clk 0:00:22]} 1-0


[Site "https://www.chess.com"]

[Event "Titled Tuesday Blitz June 20 Late 2023"]
[White "Yuan, Qingyu"]
[Black "Lewtak, Damian"]
[WhiteFideId "8609772"]
[BlackFideId "1141724"]
[WhiteElo "2359"]
[BlackElo "2302"]
[Result "1/2-1/2"]
[Round "8"]
[TimeControl "180+2"]
[Date "2023.06.20"]
[WhiteClock "0:00:13"]
[BlackClock "0:00:17"]
[Board "38"]

1. e4 {[%clk 0:03:00]}  c5 {[%clk 0:02:59]} 2. Nf3 {[%clk 0:03:00]}  d6 {[%clk 0:02:59]} 3. Bb5+ {[%clk 0:03:01]}  Bd7 {[%clk 0:02:59]} 4. Bxd7+ {[%clk 0:03:01]}  Qxd7 {[%clk 0:02:55]} 5. c4 {[%clk 0:03:01]}  Nc6 {[%clk 0:02:53]} 6. Nc3 {[%clk 0:03:02]}  Nf6 {[%clk 0:02:52]} 7. d4 {[%clk 0:03:01]}  cxd4 {[%clk 0:02:53]} 8. Nxd4 {[%clk 0:03:02]}  g6 {[%clk 0:02:53]} 9. f3 {[%clk 0:03:01]}  Bg7 {[%clk 0:02:54]} 10. Be3 {[%clk 0:03:02]}  O-O {[%clk 0:02:53]} 11. O-O {[%clk 0:03:03]}  Rac8 {[%clk 0:02:46]} 12. b3 {[%clk 0:03:01]}  e6 {[%clk 0:02:45]} 13. Rc1 {[%clk 0:02:54]}  Rfd8 {[%clk 0:02:31]} 14. Qd2 {[%clk 0:02:47]}  d5 {[%clk 0:02:31]} 15. cxd5 {[%clk 0:02:35]}  exd5 {[%clk 0:02:31]} 16. Nxc6 {[%clk 0:02:18]}  bxc6 {[%clk 0:02:30]} 17. e5 {[%clk 0:02:12]}  Ne8 {[%clk 0:02:18]} 18. Bg5 {[%clk 0:02:12]}  f6 {[%clk 0:02:16]} 19. exf6 {[%clk 0:02:10]}  Nxf6 {[%clk 0:02:14]} 20. Na4 {[%clk 0:02:03]}  Re8 {[%clk 0:02:13]} 21. Nc5 {[%clk 0:01:54]}  Qf5 {[%clk 0:02:13]} 22. Rfe1 {[%clk 0:01:47]}  Rxe1+ {[%clk 0:01:59]} 23. Rxe1 {[%clk 0:01:47]}  Re8 {[%clk 0:02:00]} 24. Bxf6 {[%clk 0:01:22]}  Rxe1+ {[%clk 0:01:46]} 25. Qxe1 {[%clk 0:01:22]}  Qxf6 {[%clk 0:01:31]} 26. Qe8+ {[%clk 0:01:10]}  Qf8 {[%clk 0:01:30]} 27. Qe6+ {[%clk 0:00:59]}  Qf7 {[%clk 0:01:12]} 28. Qxc6 {[%clk 0:00:58]}  Bd4+ {[%clk 0:01:03]} 29. Kf1 {[%clk 0:00:55]}  Bxc5 {[%clk 0:00:52]} 30. Qxc5 {[%clk 0:00:51]}  Qf5 {[%clk 0:00:49]} 31. Kf2 {[%clk 0:00:40]}  Qe5 {[%clk 0:00:44]} 32. Qe3 {[%clk 0:00:32]}  Qb2+ {[%clk 0:00:44]} 33. Qe2 {[%clk 0:00:32]}  Qd4+ {[%clk 0:00:44]} 34. Kg3 {[%clk 0:00:32]}  Kf7 {[%clk 0:00:41]} 35. f4 {[%clk 0:00:24]}  Qc3+ {[%clk 0:00:34]} 36. Kf2 {[%clk 0:00:23]}  Qd4+ {[%clk 0:00:28]} 37. Kf3 {[%clk 0:00:22]}  Qc3+ {[%clk 0:00:27]} 38. Qe3 {[%clk 0:00:20]}  Qc7 {[%clk 0:00:26]} 39. Qd4 {[%clk 0:00:18]}  Qd7 {[%clk 0:00:25]} 40. g4 {[%clk 0:00:15]}  h5 {[%clk 0:00:24]} 41. h3 {[%clk 0:00:15]}  hxg4+ {[%clk 0:00:22]} 42. hxg4 {[%clk 0:00:16]}  a6 {[%clk 0:00:20]} 43. a4 {[%clk 0:00:15]}  Qc6 {[%clk 0:00:20]} 44. b4 {[%clk 0:00:13]}  Ke6 {[%clk 0:00:18]} 45. g5 {[%clk 0:00:12]}  Qxa4 {[%clk 0:00:16]} 46. Qe5+ {[%clk 0:00:12]}  Kd7 {[%clk 0:00:12]} 47. Qxd5+ {[%clk 0:00:12]}  Kc7 {[%clk 0:00:13]} 48. Qa5+ {[%clk 0:00:12]}  Qxa5 {[%clk 0:00:12]} 49. bxa5 {[%clk 0:00:13]}  Kd6 {[%clk 0:00:13]} 50. f5 {[%clk 0:00:08]}  gxf5 {[%clk 0:00:12]} 51. Kf4 {[%clk 0:00:09]}  Ke6 {[%clk 0:00:12]} 52. g6 {[%clk 0:00:08]}  Kf6 {[%clk 0:00:12]} 53. g7 {[%clk 0:00:08]}  Kxg7 {[%clk 0:00:12]} 54. Kxf5 {[%clk 0:00:09]}  Kf7 {[%clk 0:00:13]} 55. Ke5 {[%clk 0:00:10]}  Ke7 {[%clk 0:00:14]} 56. Kd5 {[%clk 0:00:11]}  Kd7 {[%clk 0:00:15]} 57. Kc5 {[%clk 0:00:11]}  Kc7 {[%clk 0:00:15]} 58. Kd5 {[%clk 0:00:12]}  Kd7 {[%clk 0:00:16]} 59. Kc5 {[%clk 0:00:13]}  Kc7 {[%clk 0:00:17]} 60. Kd5 {[%clk 0:00:13]}  Kd7 {[%clk 0:00:17]} 1/2-1/2


[Site "https://www.chess.com"]

[Event "Titled Tuesday Blitz June 20 Late 2023"]
[White "Dushyant Sharma"]
[Black "Turayev, Shahruh"]
[WhiteFideId "25065130"]
[BlackFideId "14003856"]
[WhiteElo "2198"]
[BlackElo "2113"]
[Result "1-0"]
[Round "8"]
[TimeControl "180+2"]
[Date "2023.06.20"]
[WhiteClock "0:00:15"]
[BlackClock "0:00:27"]
[Board "39"]

1. e4 {[%clk 0:02:49]}  e6 {[%clk 0:02:59]} 2. d4 {[%clk 0:02:48]}  d5 {[%clk 0:02:59]} 3. exd5 {[%clk 0:02:49]}  exd5 {[%clk 0:02:59]} 4. Bd3 {[%clk 0:02:50]}  Nc6 {[%clk 0:02:59]} 5. c3 {[%clk 0:02:50]}  Bd6 {[%clk 0:02:59]} 6. Nf3 {[%clk 0:02:51]}  Bg4 {[%clk 0:02:59]} 7. O-O {[%clk 0:02:50]}  Qd7 {[%clk 0:02:59]} 8. Be3 {[%clk 0:02:48]}  O-O-O {[%clk 0:02:55]} 9. Nbd2 {[%clk 0:02:48]}  f6 {[%clk 0:02:52]} 10. b4 {[%clk 0:02:48]}  Re8 {[%clk 0:02:52]} 11. a4 {[%clk 0:02:49]}  Nge7 {[%clk 0:02:35]} 12. a5 {[%clk 0:02:47]}  Nf5 {[%clk 0:02:30]} 13. Re1 {[%clk 0:02:46]}  Nd8 {[%clk 0:02:16]} 14. Qc2 {[%clk 0:02:40]}  Nxe3 {[%clk 0:02:10]} 15. fxe3 {[%clk 0:02:41]}  Kb8 {[%clk 0:02:11]} 16. b5 {[%clk 0:02:40]}  Nf7 {[%clk 0:01:51]} 17. b6 {[%clk 0:02:30]}  a6 {[%clk 0:01:35]} 18. bxc7+ {[%clk 0:02:30]}  Qxc7 {[%clk 0:01:36]} 19. Rab1 {[%clk 0:02:29]}  Ka8 {[%clk 0:01:31]} 20. Rb6 {[%clk 0:02:25]}  Ng5 {[%clk 0:01:20]} 21. Reb1 {[%clk 0:00:50]}  Bxf3 {[%clk 0:00:59]} 22. Nxf3 {[%clk 0:00:41]}  Nxf3+ {[%clk 0:00:59]} 23. gxf3 {[%clk 0:00:42]}  Rxe3 {[%clk 0:00:41]} 24. Bxa6 {[%clk 0:00:19]}  Rxc3 {[%clk 0:00:29]} 25. Bxb7+ {[%clk 0:00:15]}  Ka7 {[%clk 0:00:27]} 26. Ra6+ {[%clk 0:00:14]}  Kb8 {[%clk 0:00:27]} 27. Ra8# {[%clk 0:00:15]} 1-0


[Site "https://www.chess.com"]

[Event "Titled Tuesday Blitz June 20 Late 2023"]
[White "Katz, Alexander"]
[Black "Haszon, David"]
[WhiteFideId "2039796"]
[BlackFideId "733610"]
[WhiteElo "2389"]
[BlackElo "2210"]
[Result "0-1"]
[Round "8"]
[TimeControl "180+2"]
[Date "2023.06.20"]
[WhiteClock "0:00:07"]
[BlackClock "0:00:17"]
[Board "41"]

1. e4 {[%clk 0:03:00]}  c5 {[%clk 0:02:59]} 2. Nf3 {[%clk 0:03:01]}  e6 {[%clk 0:02:59]} 3. d4 {[%clk 0:02:58]}  cxd4 {[%clk 0:03:00]} 4. Nxd4 {[%clk 0:02:59]}  Nf6 {[%clk 0:03:01]} 5. Nc3 {[%clk 0:02:58]}  Nc6 {[%clk 0:03:01]} 6. Ndb5 {[%clk 0:02:53]}  Bc5 {[%clk 0:03:01]} 7. Nd6+ {[%clk 0:02:46]}  Ke7 {[%clk 0:03:00]} 8. Nxc8+ {[%clk 0:02:37]}  Rxc8 {[%clk 0:03:00]} 9. Be2 {[%clk 0:02:33]}  Re8 {[%clk 0:03:00]} 10. O-O {[%clk 0:02:32]}  Kf8 {[%clk 0:02:59]} 11. Bf4 {[%clk 0:02:31]}  a6 {[%clk 0:02:42]} 12. Bd6+ {[%clk 0:02:26]}  Bxd6 {[%clk 0:02:41]} 13. Qxd6+ {[%clk 0:02:27]}  Qe7 {[%clk 0:02:39]} 14. Rad1 {[%clk 0:02:26]}  b5 {[%clk 0:02:29]} 15. a3 {[%clk 0:02:12]}  Qxd6 {[%clk 0:02:06]} 16. Rxd6 {[%clk 0:02:13]}  Red8 {[%clk 0:02:07]} 17. Rfd1 {[%clk 0:02:09]}  Ke7 {[%clk 0:02:05]} 18. f4 {[%clk 0:02:01]}  Ne8 {[%clk 0:02:04]} 19. R6d2 {[%clk 0:01:54]}  d6 {[%clk 0:02:04]} 20. a4 {[%clk 0:01:49]}  b4 {[%clk 0:01:59]} 21. Na2 {[%clk 0:01:48]}  a5 {[%clk 0:01:57]} 22. Nc1 {[%clk 0:01:42]}  Rc7 {[%clk 0:01:51]} 23. Nb3 {[%clk 0:01:42]}  Ra8 {[%clk 0:01:43]} 24. Bb5 {[%clk 0:01:40]}  Raa7 {[%clk 0:01:43]} 25. g4 {[%clk 0:01:31]}  Rc8 {[%clk 0:01:32]} 26. h4 {[%clk 0:01:25]}  Rac7 {[%clk 0:01:27]} 27. Ba6 {[%clk 0:01:09]}  Ra8 {[%clk 0:01:23]} 28. Bb5 {[%clk 0:01:08]}  Raa7 {[%clk 0:01:23]} 29. Kf2 {[%clk 0:01:06]}  Nf6 {[%clk 0:01:21]} 30. Kf3 {[%clk 0:01:04]}  Ne8 {[%clk 0:01:20]} 31. g5 {[%clk 0:01:04]}  Rc8 {[%clk 0:01:18]} 32. h5 {[%clk 0:01:01]}  Rcc7 {[%clk 0:01:18]} 33. Rd3 {[%clk 0:00:50]}  Rc8 {[%clk 0:01:05]} 34. c3 {[%clk 0:00:49]}  Rcc7 {[%clk 0:01:03]} 35. Bxc6 {[%clk 0:00:44]}  Rxc6 {[%clk 0:01:02]} 36. Nd4 {[%clk 0:00:44]}  Rb6 {[%clk 0:00:57]} 37. Nb5 {[%clk 0:00:44]}  Ra8 {[%clk 0:00:52]} 38. c4 {[%clk 0:00:35]}  Rc8 {[%clk 0:00:50]} 39. b3 {[%clk 0:00:35]}  Rc5 {[%clk 0:00:49]} 40. e5 {[%clk 0:00:33]}  dxe5 {[%clk 0:00:41]} 41. Rd7+ {[%clk 0:00:33]}  Kf8 {[%clk 0:00:41]} 42. fxe5 {[%clk 0:00:17]}  Rxe5 {[%clk 0:00:40]} 43. Kf4 {[%clk 0:00:18]}  Rf5+ {[%clk 0:00:40]} 44. Kg4 {[%clk 0:00:19]}  h6 {[%clk 0:00:38]} 45. gxh6 {[%clk 0:00:15]}  gxh6 {[%clk 0:00:39]} 46. Nd4 {[%clk 0:00:15]}  Nf6+ {[%clk 0:00:38]} 47. Kg3 {[%clk 0:00:12]}  Rg5+ {[%clk 0:00:38]} 48. Kf4 {[%clk 0:00:12]}  Nxd7 {[%clk 0:00:38]} 49. Nf3 {[%clk 0:00:11]}  Rf5+ {[%clk 0:00:38]} 50. Ke4 {[%clk 0:00:12]}  Nf6+ {[%clk 0:00:37]} 51. Ke3 {[%clk 0:00:12]}  Rxh5 {[%clk 0:00:35]} 52. Rd7 {[%clk 0:00:13]}  Rf5 {[%clk 0:00:28]} 53. Ra7 {[%clk 0:00:13]}  h5 {[%clk 0:00:28]} 54. Nd4 {[%clk 0:00:13]}  Re5+ {[%clk 0:00:27]} 55. Kf3 {[%clk 0:00:14]}  h4 {[%clk 0:00:25]} 56. Kg2 {[%clk 0:00:10]}  Rd6 {[%clk 0:00:21]} 57. Nf3 {[%clk 0:00:10]}  Re4 {[%clk 0:00:18]} 58. c5 {[%clk 0:00:10]}  Rd3 {[%clk 0:00:17]} 59. c6 {[%clk 0:00:07]}  Rc3 {[%clk 0:00:17]} 60. c7 {[%clk 0:00:05]}  Kg7 {[%clk 0:00:18]} 61. Nd2 {[%clk 0:00:04]}  Rg4+ {[%clk 0:00:16]} 62. Kh2 {[%clk 0:00:04]}  Nd5 {[%clk 0:00:16]} 63. Nc4 {[%clk 0:00:05]}  Rgxc4 {[%clk 0:00:16]} 64. bxc4 {[%clk 0:00:04]}  Rxc4 {[%clk 0:00:16]} 65. Rxa5 {[%clk 0:00:04]}  Rxc7 {[%clk 0:00:16]} 66. Rb5 {[%clk 0:00:05]}  Ra7 {[%clk 0:00:16]} 67. a5 {[%clk 0:00:05]}  Kf6 {[%clk 0:00:15]} 68. Kh3 {[%clk 0:00:05]}  Ke5 {[%clk 0:00:16]} 69. Kxh4 {[%clk 0:00:06]}  Kd4 {[%clk 0:00:16]} 70. Kg5 {[%clk 0:00:06]}  Kc3 {[%clk 0:00:16]} 71. Rb8 {[%clk 0:00:07]}  b3 {[%clk 0:00:17]} 72. Rc8+ {[%clk 0:00:07]}  Nc7 {[%clk 0:00:17]} 73. a6 {[%clk 0:00:07]}  b2 {[%clk 0:00:17]} 74. Rb8 {[%clk 0:00:07]}  Rxa6 {[%clk 0:00:17]} 75. Rb7 {[%clk 0:00:08]}  Ra5+ {[%clk 0:00:16]} 76. Kf6 {[%clk 0:00:08]}  Nb5 {[%clk 0:00:17]} 77. Kxf7 {[%clk 0:00:07]}  b1=Q {[%clk 0:00:17]} 0-1


[Site "https://www.chess.com"]